[Event "Open Cappelle-la-Grande"]
[Date "2025.02.17"]
[White "Sorensen, Hampus"]
[Black "Terekhov, Andrey"]
[WhiteElo "2430"]
[BlackElo "2265"]
[Round "4.4.12"]
[Result "1-0"]
[TimeControl "40/5400+30:1800+30"]

1. e4 {[%clk 1:30:38]} 1... e5 {[%clk 1:30:46]} 2. Nf3 {[%clk 1:30:41]} 2... Nf6
{[%clk 1:31:09]} 3. Nxe5 {[%clk 1:30:37]} 3... d6 {[%clk 1:31:31]} 4. Nf3 {[%clk
1:30:56]} 4... Nxe4 {[%clk 1:31:56]} 5. Bd3 {[%clk 1:31:01]} 5... Nf6 {[%clk
1:31:49]} 6. O-O {[%clk 1:31:05]} 6... Be7 {[%clk 1:32:08]} 7. h3 {[%clk
1:29:10]} 7... O-O {[%clk 1:32:08]} 8. c3 {[%clk 1:29:32]} 8... h6 {[%clk
1:30:45]} 9. Bc2 {[%clk 1:27:22]} 9... c5 {[%clk 1:29:43]} 10. d4 {[%clk
1:26:18]} 10... Be6 {[%clk 1:28:51]} 11. Nbd2 {[%clk 1:21:19]} 11... Nc6 {[%clk
1:22:39]} 12. Ne4 {[%clk 1:19:01]} 12... Bc4 {[%clk 1:11:12]} 13. Re1 {[%clk
1:16:48]} 13... cxd4 {[%clk 1:06:18]} 14. Nxd4 {[%clk 1:14:49]} 14... Re8 {[%clk
0:40:51]} 15. Nxc6 {[%clk 1:01:38]} 15... bxc6 {[%clk 0:41:02]} 16. Bxh6 {[%clk
1:01:00]} 16... gxh6 {[%clk 0:30:09]} 17. Nxf6+ {[%clk 1:01:15]} 17... Bxf6
{[%clk 0:30:38]} 18. Qg4+ {[%clk 1:01:32]} 18... Bg7 {[%clk 0:31:03]} 19. Qxc4
{[%clk 1:01:45]} 19... Qb6 {[%clk 0:30:53]} 20. Bb3 {[%clk 0:56:19]} 20... d5
{[%clk 0:30:44]} 21. Qf4 {[%clk 0:40:38]} 21... a5 {[%clk 0:29:23]} 22. Rab1
{[%clk 0:39:18]} 22... a4 {[%clk 0:18:42]} 23. Bxa4 {[%clk 0:29:04]} 23... Rxe1+
{[%clk 0:15:16]} 24. Rxe1 {[%clk 0:29:23]} 24... Qxb2 {[%clk 0:15:43]} 25. Bxc6
{[%clk 0:29:48]} 25... Rd8 {[%clk 0:11:35]} 26. Qc7 {[%clk 0:21:14]} 26... Rf8
{[%clk 0:06:12]} 27. Re3 {[%clk 0:08:48]} 27... Qxa2 {[%clk 0:05:59]} 28. Rg3
{[%clk 0:08:18]} 28... Qb1+ {[%clk 0:04:49]} 29. Kh2 {[%clk 0:08:46]} 29... Qf5
{[%clk 0:05:09]} 30. Qd6 {[%clk 0:06:28]} 30... Kh8 {[%clk 0:03:01]} 31. f4
{[%clk 0:06:40]} 31... Rc8 {[%clk 0:02:42]} 32. Bxd5 {[%clk 0:02:30]} 32... Rxc3
{[%clk 0:01:23]} 33. Rxc3 {[%clk 0:02:21]} 33... Bxc3 {[%clk 0:01:52]} 34. Qxh6+
{[%clk 0:01:59]} 34... Kg8 {[%clk 0:02:14]} 35. Qd6 {[%clk 0:02:02]} 35... Kg7
{[%clk 0:01:49]} 36. g3 {[%clk 0:01:04]} 36... Bd4 {[%clk 0:01:32]} 37. Bg2
{[%clk 0:01:03]} 37... Qd3 {[%clk 0:01:50]} 38. Qd5 {[%clk 0:00:56]} 38... Qd1
{[%clk 0:01:02]} 39. Qg5+ {[%clk 0:00:57]} 39... Kf8 {[%clk 0:01:21]} 40. Qd8+
{[%clk 0:01:01]} 40... Kg7 {[%clk 0:01:47]} 41. Qg5+ {[%clk 0:01:17]} 41... Kf8
{[%clk 0:02:09]} 42. h4 {[%clk 0:28:06]} 42... Bg7 {[%clk 0:24:34]} 43. Qc5+
{[%clk 0:25:09]} 43... Kg8 {[%clk 0:24:35]} 44. Qc8+ {[%clk 0:24:59]} 44... Bf8
{[%clk 0:22:34]} 45. Qc4 {[%clk 0:23:43]} 45... Qh5 {[%clk 0:20:02]} 46. Bd5
{[%clk 0:23:11]} 46... Be7 {[%clk 0:18:35]} 47. Qe4 {[%clk 0:22:35]} 47... Bf6
{[%clk 0:18:17]} 48. Kh3 {[%clk 0:21:53]} 48... Kg7 {[%clk 0:17:27]} 49. Bc4
{[%clk 0:21:31]} 49... Qg6 {[%clk 0:14:55]} 50. Qd5 {[%clk 0:21:15]} 50... Be7
{[%clk 0:14:42]} 51. Bd3 {[%clk 0:13:07]} 51... Qh6 {[%clk 0:09:36]} 52. Kg2
{[%clk 0:11:46]} 52... Kf8 {[%clk 0:06:02]} 53. Kf3 {[%clk 0:09:01]} 53... Kg7
{[%clk 0:04:53]} 54. Bc4 {[%clk 0:08:48]} 54... Qf6 {[%clk 0:04:34]} 55. h5
{[%clk 0:08:46]} 55... Qc3+ {[%clk 0:04:00]} 56. Kg4 {[%clk 0:08:58]} 56... Qf6
{[%clk 0:04:03]} 57. Bb3 {[%clk 0:08:53]} 57... Bd6 {[%clk 0:03:47]} 58. Qc4
{[%clk 0:09:02]} 58... Be7 {[%clk 0:03:08]} 59. Kf3 {[%clk 0:09:23]} 59... Ba3
{[%clk 0:02:35]} 60. g4 {[%clk 0:07:40]} 60... Bb2 {[%clk 0:02:58]} 61. h6+
{[%clk 0:07:39]} 61... Kf8 {[%clk 0:03:19]} 62. Qc8+ {[%clk 0:06:23]} 62... Ke7
{[%clk 0:03:42]} 63. Qb7+ {[%clk 0:03:20]} 63... Kf8 {[%clk 0:03:04]} 64. g5
{[%clk 0:01:56]} 64... Qe7 {[%clk 0:01:56]} 65. Qb8+ {[%clk 0:01:14]} 65... Qe8
{[%clk 0:02:21]} 66. Qxe8+ {[%clk 0:01:23]} 66... Kxe8 {[%clk 0:02:50]} 67. f5
{[%clk 0:01:39]} 67... Kf8 {[%clk 0:02:29]} 68. f6 {[%clk 0:01:40]} 68... Kg8
{[%clk 0:02:49]} 69. Bxf7+ {[%clk 0:01:13]} 69... Kxf7 {[%clk 0:01:23]} 70. h7
{[%clk 0:01:38]} 70... Bxf6 {[%clk 0:01:48]} 71. gxf6 {[%clk 0:02:04]} 1-0

[Variant "Standard"]
[Site "Europe Echecs"]

[Event "Open Cappelle-la-Grande"]
[Date "2025.02.17"]
[White "Wirig, Anthony"]
[Black "Ringuet, Noe"]
[WhiteElo "2419"]
[BlackElo "2239"]
[Round "4.4.13"]
[Result "1/2-1/2"]
[TimeControl "40/5400+30:1800+30"]

1. b4 {[%clk 1:30:57]} 1... d5 {[%clk 1:25:55]} 2. Bb2 {[%clk 1:30:22]} 2... Qd6
{[%clk 1:24:53]} 3. a3 {[%clk 1:28:41]} 3... e5 {[%clk 1:25:10]} 4. e3 {[%clk
1:28:03]} 4... Nf6 {[%clk 1:24:29]} 5. d3 {[%clk 1:22:25]} 5... g6 {[%clk
1:18:23]} 6. Nf3 {[%clk 1:21:36]} 6... Nbd7 {[%clk 1:18:28]} 7. Nbd2 {[%clk
1:20:31]} 7... Bg7 {[%clk 1:17:44]} 8. c4 {[%clk 1:17:20]} 8... c6 {[%clk
1:14:55]} 9. cxd5 {[%clk 1:13:42]} 9... cxd5 {[%clk 1:14:30]} 10. Be2 {[%clk
1:14:10]} 10... O-O {[%clk 1:14:11]} 11. Qc2 {[%clk 1:02:31]} 11... Re8 {[%clk
1:06:25]} 12. O-O {[%clk 1:00:02]} 12... a5 {[%clk 0:55:57]} 13. bxa5 {[%clk
0:42:04]} 13... Rxa5 {[%clk 0:53:36]} 14. d4 {[%clk 0:40:40]} 14... exd4 {[%clk
0:42:49]} 15. Bxd4 {[%clk 0:34:39]} 15... Nb8 {[%clk 0:27:33]} 16. Nb3 {[%clk
0:27:08]} 16... Bf5 {[%clk 0:24:30]} 17. Bd3 {[%clk 0:23:38]} 17... Bxd3 {[%clk
0:23:47]} 18. Qxd3 {[%clk 0:24:06]} 18... Rxa3 {[%clk 0:19:09]} 19. Rxa3 {[%clk
0:21:57]} 19... Qxa3 {[%clk 0:18:46]} 20. Bxf6 {[%clk 0:20:55]} 20... Bxf6
{[%clk 0:19:08]} 21. Qxd5 {[%clk 0:21:18]} 21... Nc6 {[%clk 0:17:14]} 22. Nc5
{[%clk 0:16:33]} 22... Rd8 {[%clk 0:15:58]} 23. Qc4 {[%clk 0:16:59]} 23... Qb2
{[%clk 0:14:23]} 24. Ne4 {[%clk 0:15:57]} 24... h6 {[%clk 0:07:33]} 25. Nxf6+
{[%clk 0:13:11]} 25... Qxf6 {[%clk 0:07:59]} 26. Qb5 {[%clk 0:13:19]} 26... Qe7
{[%clk 0:05:04]} 27. h4 {[%clk 0:12:28]} 27... h5 {[%clk 0:04:18]} 28. Rb1
{[%clk 0:12:42]} 28... Rd7 {[%clk 0:04:43]} 29. Qc4 {[%clk 0:12:22]} 29... Kg7
{[%clk 0:04:46]} 30. g3 {[%clk 0:11:23]} 30... Qf6 {[%clk 0:04:55]} 31. Qe4
{[%clk 0:09:47]} 31... Qc3 {[%clk 0:01:51]} 32. Kg2 {[%clk 0:08:48]} 32... Qf6
{[%clk 0:01:56]} 33. Rb5 {[%clk 0:07:11]} 33... Qe7 {[%clk 0:00:59]} 34. Qb1
{[%clk 0:07:21]} 34... Nd8 {[%clk 0:00:52]} 35. Nd4 {[%clk 0:04:56]} 35... Qf6
{[%clk 0:01:05]} 36. Rb6 {[%clk 0:01:48]} 36... Rd6 {[%clk 0:01:11]} 37. Rb5
{[%clk 0:02:02]} 37... Rd7 {[%clk 0:00:58]} 38. Rb6 {[%clk 0:01:31]} 38... Rd6
{[%clk 0:01:27]} 39. Rb5 {[%clk 0:01:47]} 1/2-1/2

[Variant "Standard"]
[Site "Europe Echecs"]

[Event "Open Cappelle-la-Grande"]
[Date "2025.02.17"]
[White "Liu, Casper"]
[Black "Dionisi, Thomas"]
[WhiteElo "2271"]
[BlackElo "2400"]
[Round "4.4.14"]
[Result "1/2-1/2"]
[TimeControl "40/5400+30:1800+30"]

1. d4 {[%clk 1:27:45]} 1... Nf6 {[%clk 1:29:19]} 2. c4 {[%clk 1:28:10]} 2... e6
{[%clk 1:29:39]} 3. g3 {[%clk 1:28:37]} 3... c5 {[%clk 1:29:38]} 4. d5 {[%clk
1:28:59]} 4... exd5 {[%clk 1:29:24]} 5. cxd5 {[%clk 1:29:26]} 5... d6 {[%clk
1:29:40]} 6. Nc3 {[%clk 1:29:52]} 6... g6 {[%clk 1:29:56]} 7. Bg2 {[%clk
1:30:17]} 7... Bg7 {[%clk 1:30:17]} 8. Nf3 {[%clk 1:30:45]} 8... O-O {[%clk
1:30:29]} 9. O-O {[%clk 1:31:11]} 9... Re8 {[%clk 1:30:26]} 10. Bf4 {[%clk
1:31:37]} 10... h6 {[%clk 1:29:43]} 11. Qc1 {[%clk 1:26:01]} 11... g5 {[%clk
1:29:49]} 12. Be3 {[%clk 1:25:50]} 12... Bf5 {[%clk 1:29:23]} 13. h4 {[%clk
1:25:15]} 13... Ng4 {[%clk 1:25:24]} 14. Bd2 {[%clk 1:23:53]} 14... f6 {[%clk
1:25:45]} 15. e4 {[%clk 1:21:51]} 15... Bd7 {[%clk 1:22:28]} 16. a4 {[%clk
1:18:01]} 16... Na6 {[%clk 1:14:43]} 17. Nb5 {[%clk 1:18:12]} 17... Qb6 {[%clk
1:11:37]} 18. Qe1 {[%clk 1:15:59]} 18... Bxb5 {[%clk 1:03:28]} 19. Ba5 {[%clk
1:16:17]} 19... Bxf1 {[%clk 1:03:53]} 20. Bxb6 {[%clk 1:14:03]} 20... Bxg2
{[%clk 1:04:16]} 21. Kxg2 {[%clk 1:14:27]} 21... axb6 {[%clk 1:04:41]} 22. Qe2
{[%clk 1:13:26]} 22... f5 {[%clk 0:59:52]} 23. hxg5 {[%clk 1:12:19]} 23... Rxe4
{[%clk 0:59:35]} 24. Qb5 {[%clk 1:11:10]} 24... Rb4 {[%clk 0:47:18]} 25. Qd7
{[%clk 1:11:01]} 25... Rxb2 {[%clk 0:47:44]} 26. gxh6 {[%clk 1:00:11]} 26...
Bxh6 {[%clk 0:37:56]} 27. Kg1 {[%clk 0:48:15]} 27... Rf8 {[%clk 0:21:52]} 28.
Re1 {[%clk 0:48:43]} 28... Rxf2 {[%clk 0:07:46]} 29. Nh4 {[%clk 0:45:53]} 29...
Rd2 {[%clk 0:04:45]} 30. Qe6+ {[%clk 0:42:12]} 30... Kg7 {[%clk 0:02:56]} 31.
Qg6+ {[%clk 0:31:01]} 31... Kh8 {[%clk 0:03:24]} 32. Re7 {[%clk 0:31:27]} 32...
Be3+ {[%clk 0:03:06]} 33. Kf1 {[%clk 0:24:20]} 33... Rf2+ {[%clk 0:03:31]} 34.
Ke1 {[%clk 0:24:47]} 34... Bd2+ {[%clk 0:03:54]} 35. Kd1 {[%clk 0:25:16]} 35...
Ne3+ {[%clk 0:04:16]} 36. Rxe3 {[%clk 0:25:43]} 36... Bxe3 {[%clk 0:04:43]} 37.
Qxd6 {[%clk 0:25:43]} 37... Re8 {[%clk 0:03:13]} 38. Ng6+ {[%clk 0:25:30]} 38...
Kg8 {[%clk 0:02:51]} 39. Ne7+ {[%clk 0:23:46]} 39... Rxe7 {[%clk 0:01:54]} 40.
Qxe7 {[%clk 0:24:10]} 40... Rd2+ {[%clk 0:02:06]} 41. Ke1 {[%clk 0:24:12]} 41...
Nb4 {[%clk 0:29:52]} 42. Qe6+ {[%clk 0:45:32]} 42... Kg7 {[%clk 0:29:18]} 43.
Qe7+ {[%clk 0:46:00]} 43... Kg8 {[%clk 0:27:59]} 44. Qe6+ {[%clk 0:42:13]} 44...
Kg7 {[%clk 0:28:22]} 45. Qe7+ {[%clk 0:42:41]} 1/2-1/2

[Variant "Standard"]
[Site "Europe Echecs"]

[Event "Open Cappelle-la-Grande"]
[Date "2025.02.17"]
[White "Defromont, Benjamin"]
[Black "Mueer, Sebastian"]
[WhiteElo "2395"]
[BlackElo "2219"]
[Round "4.4.15"]
[Result "1/2-1/2"]
[TimeControl "40/5400+30:1800+30"]

1. e4 {[%clk 1:20:35]} 1... c5 {[%clk 1:30:48]} 2. Nf3 {[%clk 1:20:58]} 2... e6
{[%clk 1:31:09]} 3. d4 {[%clk 1:20:50]} 3... cxd4 {[%clk 1:31:30]} 4. Qxd4
{[%clk 1:21:10]} 4... Nc6 {[%clk 1:31:14]} 5. Qe3 {[%clk 1:21:36]} 5... d5
{[%clk 1:27:36]} 6. exd5 {[%clk 1:16:49]} 6... Nb4 {[%clk 1:27:56]} 7. Bb5+
{[%clk 1:14:44]} 7... Bd7 {[%clk 1:27:05]} 8. Bxd7+ {[%clk 1:15:06]} 8... Qxd7
{[%clk 1:27:20]} 9. Qe2 {[%clk 1:14:08]} 9... Qxd5 {[%clk 1:14:31]} 10. Nc3
{[%clk 1:12:21]} 10... Qa5 {[%clk 1:13:43]} 11. a3 {[%clk 1:09:00]} 11... Nc6
{[%clk 1:11:44]} 12. Bd2 {[%clk 1:03:47]} 12... Qb6 {[%clk 1:07:05]} 13. O-O-O
{[%clk 0:59:19]} 13... Nf6 {[%clk 1:05:23]} 14. Qc4 {[%clk 0:36:40]} 14... a6
{[%clk 1:01:54]} 15. Be3 {[%clk 0:35:28]} 15... Qc7 {[%clk 1:00:57]} 16. Bf4
{[%clk 0:31:28]} 16... Qa5 {[%clk 0:52:15]} 17. Ne4 {[%clk 0:23:38]} 17... Nxe4
{[%clk 0:51:54]} 18. Qxe4 {[%clk 0:24:04]} 18... Be7 {[%clk 0:48:47]} 19. Ne5
{[%clk 0:24:30]} 19... O-O {[%clk 0:37:06]} 20. Nxc6 {[%clk 0:23:07]} 20... bxc6
{[%clk 0:37:33]} 21. Be5 {[%clk 0:21:48]} 21... Rfd8 {[%clk 0:33:06]} 22. h4
{[%clk 0:21:14]} 22... Rd5 {[%clk 0:32:29]} 23. Bc3 {[%clk 0:19:55]} 23... Qb6
{[%clk 0:32:58]} 24. Qg4 {[%clk 0:19:01]} 24... Bf8 {[%clk 0:33:21]} 25. Rxd5
{[%clk 0:12:55]} 25... exd5 {[%clk 0:32:01]} 26. h5 {[%clk 0:11:25]} 26... h6
{[%clk 0:29:42]} 27. Rh3 {[%clk 0:07:26]} 27... c5 {[%clk 0:29:00]} 28. Be5
{[%clk 0:05:58]} 28... Re8 {[%clk 0:24:01]} 29. Re3 {[%clk 0:06:13]} 29... Qc6
{[%clk 0:22:02]} 30. Bf4 {[%clk 0:03:37]} 30... d4 {[%clk 0:17:22]} 31. Rxe8
{[%clk 0:02:59]} 31... Qxe8 {[%clk 0:17:50]} 32. Kd2 {[%clk 0:02:23]} 32... c4
{[%clk 0:15:39]} 33. Qf5 {[%clk 0:01:26]} 33... Qc6 {[%clk 0:14:20]} 34. Be5
{[%clk 0:01:06]} 34... c3+ {[%clk 0:13:48]} 35. bxc3 {[%clk 0:01:28]} 35...
Qxc3+ {[%clk 0:13:42]} 36. Kd1 {[%clk 0:01:30]} 36... Bxa3 {[%clk 0:06:55]} 37.
Qe4 {[%clk 0:00:48]} 37... Bb4 {[%clk 0:02:19]} 38. Qa8+ {[%clk 0:01:09]} 38...
Kh7 {[%clk 0:02:44]} 39. Qe4+ {[%clk 0:01:36]} 39... Kg8 {[%clk 0:03:10]} 40.
Qa8+ {[%clk 0:00:55]} 40... Kh7 {[%clk 0:03:32]} 41. Qe4+ {[%clk 0:01:22]}
1/2-1/2

[Variant "Standard"]
[Site "Europe Echecs"]

[Event "Open Cappelle-la-Grande"]
[Date "2025.02.17"]
[White "Karthik Venkataraman"]
[Black "Orieux, Etienne"]
[WhiteElo "2600"]
[BlackElo "2197"]
[Round "4.4.16"]
[Result "1-0"]
[TimeControl "40/5400+30:1800+30"]

1. b3 {[%clk 1:30:51]} 1... d5 {[%clk 1:29:49]} 2. Bb2 {[%clk 1:31:12]} 2... Nf6
{[%clk 1:29:48]} 3. e3 {[%clk 1:30:53]} 3... e6 {[%clk 1:30:11]} 4. g4 {[%clk
1:29:38]} 4... h6 {[%clk 1:26:38]} 5. h3 {[%clk 1:21:00]} 5... Bd6 {[%clk
1:22:33]} 6. Nf3 {[%clk 1:19:51]} 6... c5 {[%clk 1:20:50]} 7. c4 {[%clk
1:19:38]} 7... a6 {[%clk 1:13:39]} 8. Nc3 {[%clk 1:10:49]} 8... Nc6 {[%clk
1:11:59]} 9. Ne2 {[%clk 1:10:30]} 9... b5 {[%clk 0:55:22]} 10. cxd5 {[%clk
1:09:56]} 10... exd5 {[%clk 0:55:40]} 11. a3 {[%clk 1:09:58]} 11... O-O {[%clk
0:55:37]} 12. Bg2 {[%clk 1:07:53]} 12... Bb7 {[%clk 0:52:01]} 13. O-O {[%clk
1:04:05]} 13... Re8 {[%clk 0:51:53]} 14. Rc1 {[%clk 1:03:31]} 14... Rc8 {[%clk
0:47:33]} 15. d3 {[%clk 0:59:57]} 15... Ba8 {[%clk 0:41:10]} 16. Re1 {[%clk
0:59:17]} 16... Rc7 {[%clk 0:35:19]} 17. Rc2 {[%clk 0:57:32]} 17... Bf8 {[%clk
0:34:08]} 18. Ng3 {[%clk 0:52:35]} 18... d4 {[%clk 0:29:56]} 19. exd4 {[%clk
0:51:47]} 19... Rxe1+ {[%clk 0:30:17]} 20. Qxe1 {[%clk 0:52:13]} 20... Nxd4
{[%clk 0:29:48]} 21. Nxd4 {[%clk 0:38:31]} 21... Bxg2 {[%clk 0:30:02]} 22. Kxg2
{[%clk 0:36:56]} 22... cxd4 {[%clk 0:30:20]} 23. Rxc7 {[%clk 0:37:12]} 23...
Qxc7 {[%clk 0:30:44]} 24. b4 {[%clk 0:37:32]} 24... Nd5 {[%clk 0:19:37]} 25.
Bxd4 {[%clk 0:32:16]} 25... Nf4+ {[%clk 0:19:51]} 26. Kh2 {[%clk 0:32:41]} 26...
Nxd3 {[%clk 0:19:57]} 27. Qe3 {[%clk 0:33:07]} 27... Nf4 {[%clk 0:14:30]} 28.
Be5 {[%clk 0:31:52]} 28... Bd6 {[%clk 0:14:55]} 29. Bxd6 {[%clk 0:31:36]} 29...
Qxd6 {[%clk 0:15:23]} 30. Qe8+ {[%clk 0:31:59]} 30... Qf8 {[%clk 0:15:35]} 31.
Qc6 {[%clk 0:32:25]} 31... Qd8 {[%clk 0:15:33]} 32. Qxa6 {[%clk 0:31:04]} 32...
Qd4 {[%clk 0:10:47]} 33. Qa8+ {[%clk 0:31:18]} 33... Kh7 {[%clk 0:10:50]} 34.
Qe4+ {[%clk 0:31:43]} 34... Qxe4 {[%clk 0:11:15]} 35. Nxe4 {[%clk 0:32:09]}
35... Ne2 {[%clk 0:08:43]} 36. Nd6 {[%clk 0:31:46]} 36... Nd4 {[%clk 0:09:04]}
37. Kg3 {[%clk 0:32:04]} 37... g5 {[%clk 0:09:12]} 38. Nxf7 {[%clk 0:26:26]}
38... Nc2 {[%clk 0:09:32]} 39. Kf3 {[%clk 0:26:48]} 39... Nxa3 {[%clk 0:09:50]}
40. Ne5 {[%clk 0:27:14]} 40... Nc2 {[%clk 0:06:03]} 41. Nd3 {[%clk 0:27:25]}
41... Kg6 {[%clk 0:06:11]} 42. Ke4 {[%clk 0:27:48]} 42... h5 {[%clk 0:05:24]}
43. Kd5 {[%clk 0:26:57]} 43... hxg4 {[%clk 0:03:31]} 44. hxg4 {[%clk 0:27:26]}
44... Kf6 {[%clk 0:03:41]} 45. Kd6 {[%clk 0:24:44]} 45... Na3 {[%clk 0:29:44]}
46. Nc5 {[%clk 0:53:27]} 46... Nc2 {[%clk 0:28:16]} 47. Ne4+ {[%clk 0:53:38]}
47... Kg6 {[%clk 0:28:39]} 48. Kc5 {[%clk 0:54:03]} 48... Na3 {[%clk 0:28:39]}
49. Nd6 {[%clk 0:54:08]} 1-0

[Variant "Standard"]
[Site "Europe Echecs"]

[Event "Open Cappelle-la-Grande"]
[Date "2025.02.17"]
[White "Feryn, Benjamin"]
[Black "Bauer, Christian"]
[WhiteElo "2228"]
[BlackElo "2548"]
[Round "4.4.17"]
[Result "0-1"]
[TimeControl "40/5400+30:1800+30"]

1. e4 {[%clk 1:30:57]} 1... c5 {[%clk 1:22:01]} 2. c3 {[%clk 1:31:09]} 2... d6
{[%clk 1:21:12]} 3. d4 {[%clk 1:31:18]} 3... Nf6 {[%clk 1:21:37]} 4. dxc5 {[%clk
1:31:18]} 4... Nc6 {[%clk 1:21:41]} 5. Qd3 {[%clk 1:28:37]} 5... dxc5 {[%clk
1:17:44]} 6. Qxd8+ {[%clk 1:28:58]} 6... Kxd8 {[%clk 1:16:39]} 7. f3 {[%clk
1:29:13]} 7... e6 {[%clk 1:16:10]} 8. Be3 {[%clk 1:26:57]} 8... b6 {[%clk
1:05:59]} 9. Na3 {[%clk 1:22:25]} 9... Bd6 {[%clk 1:05:28]} 10. Nc4 {[%clk
1:11:38]} 10... Bc7 {[%clk 1:05:26]} 11. a4 {[%clk 1:11:41]} 11... Ke7 {[%clk
0:53:27]} 12. Ne2 {[%clk 1:06:16]} 12... Bb7 {[%clk 0:51:08]} 13. Nf4 {[%clk
1:04:02]} 13... g5 {[%clk 0:40:27]} 14. Nd3 {[%clk 1:01:32]} 14... Rhg8 {[%clk
0:40:54]} 15. a5 {[%clk 0:50:05]} 15... Nd7 {[%clk 0:36:28]} 16. a6 {[%clk
0:38:10]} 16... Bc8 {[%clk 0:36:50]} 17. b4 {[%clk 0:38:19]} 17... cxb4 {[%clk
0:33:40]} 18. cxb4 {[%clk 0:38:02]} 18... b5 {[%clk 0:23:46]} 19. Na3 {[%clk
0:19:17]} 19... Bb6 {[%clk 0:23:40]} 20. Bxb6 {[%clk 0:19:18]} 20... axb6 {[%clk
0:24:06]} 21. Nxb5 {[%clk 0:19:31]} 21... Rxa6 {[%clk 0:24:01]} 22. Rc1 {[%clk
0:19:20]} 22... Bb7 {[%clk 0:22:47]} 23. e5 {[%clk 0:14:17]} 23... Ra4 {[%clk
0:17:38]} 24. Nd6 {[%clk 0:11:57]} 24... Ba8 {[%clk 0:17:41]} 25. b5 {[%clk
0:11:08]} 25... Ncxe5 {[%clk 0:09:44]} 26. Nxe5 {[%clk 0:11:24]} 26... Nxe5
{[%clk 0:10:05]} 27. Nc8+ {[%clk 0:11:37]} 27... Kf6 {[%clk 0:10:14]} 28. Nxb6
{[%clk 0:11:58]} 28... Ra2 {[%clk 0:10:40]} 29. Be2 {[%clk 0:08:47]} 29... g4
{[%clk 0:08:32]} 30. f4 {[%clk 0:03:13]} 30... Nf3+ {[%clk 0:08:34]} 31. Kf1
{[%clk 0:01:16]} 31... Nd4 {[%clk 0:07:36]} 0-1

[Variant "Standard"]
[Site "Europe Echecs"]

[Event "Open Cappelle-la-Grande"]
[Date "2025.02.18"]
[White "Muthaiah AL"]
[Black "Iniyan, Pa"]
[WhiteElo "2474"]
[BlackElo "2523"]
[Round "5.5.1"]
[Result "1/2-1/2"]
[TimeControl "40/5400+30:1800+30"]

1. d4 {[%clk 1:30:05]} 1... d5 {[%clk 1:27:49]} 2. Bf4 {[%clk 1:30:06]} 2... c5
{[%clk 1:26:48]} 3. e3 {[%clk 1:30:22]} 3... Nc6 {[%clk 1:27:05]} 4. Nf3 {[%clk
1:30:42]} 4... Nf6 {[%clk 1:25:45]} 5. Nbd2 {[%clk 1:30:43]} 5... Bg4 {[%clk
1:24:28]} 6. c3 {[%clk 1:30:47]} 6... e6 {[%clk 1:24:28]} 7. Qb3 {[%clk
1:30:49]} 7... Qb6 {[%clk 1:24:11]} 8. Ne5 {[%clk 1:28:37]} 8... Qxb3 {[%clk
1:11:16]} 9. axb3 {[%clk 1:25:39]} 9... Nxe5 {[%clk 1:11:36]} 10. Bxe5 {[%clk
1:24:12]} 10... Nd7 {[%clk 1:11:10]} 11. Bb5 {[%clk 1:00:40]} 11... f6 {[%clk
1:10:33]} 12. Bg3 {[%clk 0:58:50]} 12... a6 {[%clk 1:10:53]} 13. h3 {[%clk
0:52:00]} 13... Bf5 {[%clk 1:10:15]} 14. O-O {[%clk 0:49:21]} 14... Rc8 {[%clk
1:02:47]} 15. Be2 {[%clk 0:48:43]} 15... Kf7 {[%clk 1:03:01]} 16. Bf3 {[%clk
0:40:30]} 16... cxd4 {[%clk 0:56:07]} 17. exd4 {[%clk 0:40:36]} 17... Nb6 {[%clk
0:54:36]} 18. b4 {[%clk 0:35:01]} 18... Bd3 {[%clk 0:53:41]} 19. Rfe1 {[%clk
0:34:13]} 19... Nc4 {[%clk 0:51:37]} 20. Nxc4 {[%clk 0:27:50]} 20... Bxc4 {[%clk
0:52:00]} 21. Be2 {[%clk 0:26:13]} 1/2-1/2

[Variant "Standard"]
[Site "Europe Echecs"]